bitfinex/quotes_ETHUSD_20250924
["timestamp","ask_amount","ask_price","bid_price","bid_amount"]
[1758696668856,0.51508923,4188.8,4188.7,3.4622]
[1758696669654,0.51508923,4188.8,4188.7,3.7027]
[1758696670436,0.80723966,4188.8,4188.7,3.981]
[1758696670610,2.90240779,4188.8,4188.7,6.981]
[1758696671328,2.97630779,4188.8,4188.7,3.0]
[1758696672830,2.38754655,4188.4,4188.3,6.98]
[1758696673123,0.1192,4188.4,4188.3,6.98]
[1758696673324,0.63428923,4188.4,4188.3,7.6847]
[1758696673579,0.1192,4188.4,4188.3,3.7047]
[1758696673694,3.02183578,4188.4,4188.3,6.98]
[1758696673894,2.50674655,4188.4,4188.3,6.98]
[1758696674099,3.02183578,4188.4,4188.3,6.98]
[1758696674302,2.50674655,4188.4,4188.3,6.98]
[1758696674906,0.63428923,4188.4,4188.3,6.98]
[1758696675795,0.63428923,4188.4,4188.3,7.7009]
[1758696676099,0.51508923,4188.7,4188.3,4.7009]
[1758696676303,2.50653177,4188.8,4188.4,0.7209]
[1758696676304,0.51508923,4188.6,4188.4,0.7209]
[1758696676499,2.38657555,4188.7,4188.5,3.979]
[1758696676823,2.90297156,4188.6,4188.5,6.979]
[1758696677024,0.51553901,4188.6,4188.5,6.979]
[1758696677823,2.90297156,4188.6,4188.5,6.979]
[1758696678021,3.49830656,4188.6,4188.5,6.979]
[1758696678223,1.11087401,4188.6,4188.5,6.979]
[1758696678722,0.51553901,4188.6,4188.5,7.4503]
[1758696678922,0.51553901,4188.6,4188.5,7.6999]
[1758696679132,0.51553901,4188.7,4188.5,4.6999]
[1758696679307,0.51553901,4188.7,4188.5,9.36648254]
[1758696679506,0.51553901,4188.8,4188.5,6.979]
[1758696679817,0.0192,4188.9,4188.7,5.38737198]
[1758696680013,0.53473901,4188.9,4188.8,6.979]
[1758696680217,0.0192,4188.9,4188.8,10.08721856]
[1758696680417,0.0192,4188.9,4188.8,7.6999]
[1758696681231,0.0192,4188.9,4188.8,10.08721856]
[1758696681934,0.0192,4188.9,4188.8,7.8191]
[1758696682241,0.0192,4188.9,4188.8,10.20641856]
[1758696682445,0.0192,4188.9,4188.8,7.8191]
[1758696682645,0.0192,4188.9,4188.8,10.20641856]
[1758696683249,0.0192,4188.9,4188.8,7.0982]
[1758696683539,0.0192,4188.9,4188.8,7.8191]
[1758696686457,0.0192,4188.9,4188.8,3.0]
[1758696686657,2.52566157,4188.9,4188.8,3.0]
[1758696686816,4.15604558,4188.9,4188.8,3.0]
[1758696687016,1.76878401,4188.9,4188.8,3.0]
[1758696687248,0.1384,4188.9,4188.8,3.7209]
[1758696687452,0.65393901,4188.9,4188.8,3.7209]
[1758696687649,0.65393901,4188.9,4188.8,3.0]
[1758696687650,3.04120058,4188.9,4188.8,3.0]
[1758696688014,2.38743255,4188.6,4188.5,0.004]
[1758696688212,2.90297156,4188.6,4188.5,0.004]
[1758696688414,3.50576521,4188.6,4188.5,0.004]
[1758696688642,3.57966521,4188.6,4188.5,0.004]
[1758696688843,3.50576521,4188.6,4188.5,0.004]
[1758696689348,1.11833266,4188.6,4188.5,0.004]
[1758696689656,0.51554002,4188.6,4188.5,0.004]
[1758696689815,0.51554002,4188.6,4188.5,0.7249]
[1758696690020,0.51554002,4188.8,4188.5,3.7249]
[1758696690324,0.0192,4188.9,4188.6,0.7209]
[1758696690518,0.53474002,4188.9,4188.8,3.0]
[1758696690714,0.1384,4188.9,4188.8,3.0]
[1758696691255,0.65394002,4188.9,4188.8,3.0]
[1758696691464,1.19676601,4188.9,4188.5,0.004]
[1758696691663,2.90290874,4188.8,4188.5,3.004]
[1758696691836,0.51554002,4188.8,4188.5,3.004]
[1758696692382,0.51554002,4188.8,4188.6,0.7209]
[1758696692561,0.51554002,4188.8,4188.6,0.2496]
[1758696692735,0.51554002,4188.8,4188.5,3.004]
[1758696692934,0.51554002,4188.8,4188.6,0.7209]
[1758696693158,0.51554002,4188.8,4188.5,3.4753]
[1758696693455,0.51554002,4188.7,4188.5,3.004]
[1758696693672,2.90286829,4188.8,4188.5,3.988]
[1758696693978,0.51554002,4188.7,4188.5,3.988]
[1758696694474,0.51554002,4188.8,4188.5,3.988]
[1758696694682,2.38743255,4188.6,4188.5,3.004]
[1758696694895,2.90297257,4188.6,4188.5,3.004]
[1758696696077,0.51554002,4188.6,4188.5,3.004]
[1758696696447,2.90297257,4188.6,4188.5,3.004]
[1758696696647,4.07037254,4188.6,4188.5,3.004]
[1758696697058,4.0703712,4188.6,4188.5,3.004]
[1758696697275,1.68293865,4188.6,4188.5,3.004]
[1758696697542,0.63473868,4188.7,4188.5,3.7249]
[1758696697743,0.51553868,4188.6,4188.5,3.004]
[1758696698172,0.51553868,4188.6,4188.5,3.2536]
[1758696698482,0.1192,4188.7,4188.6,3.0]
[1758696698846,0.1192,4188.7,4188.6,0.7209]
[1758696699245,0.1192,4188.7,4188.6,7.09233255]
[1758696699480,0.1192,4188.7,4188.6,4.7049]
[1758696699645,0.1192,4188.7,4188.6,7.7049]
[1758696699839,0.1192,4188.7,4188.6,10.09233255]
[1758696700055,0.0192,4188.9,4188.7,5.38735827]
[1758696700264,0.0192,4188.9,4188.7,3.7209]
[1758696700472,0.0192,4188.9,4188.8,0.7209]
[1758696701466,0.0192,4188.9,4188.7,3.0]
[1758696701796,2.52566699,4188.9,4188.5,0.004]
[1758696701996,0.65393868,4188.9,4188.7,3.0]
[1758696702153,0.1384,4188.9,4188.5,0.004]
[1758696702486,3.04121298,4188.9,4188.7,3.0]
[1758696702692,0.1384,4188.9,4188.7,3.0]
[1758696703050,0.65393868,4188.9,4188.7,3.0]
[1758696703253,0.1384,4188.9,4188.7,3.0]
[1758696703453,0.65393868,4188.9,4188.7,3.0]
[1758696703684,0.51553868,4188.8,4188.6,3.0]
[1758696703884,0.51553868,4188.8,4188.6,3.6653]
[1758696704090,0.0184,4188.9,4188.6,3.6653]
[1758696704288,0.53393868,4188.9,4188.6,3.6653]
[1758696704521,0.1192,4188.8,4188.7,0.6653]
[1758696704738,0.1192,4188.8,4188.6,3.0]
[1758696705229,0.1192,4188.8,4188.7,0.6653]
[1758696705595,0.1192,4188.8,4188.6,3.0]
[1758696706141,0.1192,4188.8,4188.7,0.2338]
[1758696706319,0.1192,4188.8,4188.6,3.4315]
[1758696706497,0.1192,4188.8,4188.6,3.6653]
[1758696706697,0.1192,4188.8,4188.7,0.6653]
[1758696707215,0.1192,4188.8,4188.6,3.0]
[1758696707445,0.1192,4188.8,4188.6,3.4315]
[1758696707615,0.1192,4188.8,4188.7,0.2338]
[1758696707825,0.1192,4188.8,4188.7,3.6653]
[1758696707998,0.0184,4188.9,4188.7,3.6653]
[1758696707999,0.0184,4188.9,4188.8,3.0]
[1758696708199,0.53393868,4188.9,4188.7,0.6653]
[1758696708399,0.0184,4188.9,4188.5,3.004]
[1758696708629,0.53393868,4188.9,4188.5,3.004]
[1758696708833,0.51553868,4188.8,4188.5,3.004]
[1758696709137,0.51553868,4188.7,4188.5,0.004]
[1758696710337,0.51553868,4188.7,4188.6,0.6653]
[1758696710634,0.51553868,4188.7,4188.5,0.004]
[1758696711399,0.51553868,4188.7,4188.6,0.4315]
[1758696711750,0.51553868,4188.7,4188.5,0.004]
[1758696712733,0.51553868,4188.7,4188.6,0.2338]
[1758696713036,0.51553868,4188.7,4188.5,0.004]
[1758696713733,0.51553868,4188.6,4188.5,0.004]
[1758696714033,0.51553868,4188.7,4188.5,0.004]
[1758696714234,0.51553868,4188.6,4188.5,0.004]
[1758696714440,0.51553868,4188.7,4188.5,0.004]
[1758696714739,0.51553868,4188.6,4188.5,0.004]
[1758696714974,0.51553868,4188.7,4188.5,0.004]
[1758696715134,0.51553868,4188.6,4188.5,0.004]
[1758696716841,0.51553868,4188.7,4188.5,0.4355]
[1758696717141,0.51553868,4188.6,4188.5,0.004]
[1758696717439,0.51553868,4188.7,4188.5,0.2378]
[1758696717628,0.51553868,4188.6,4188.5,0.4355]
[1758696717831,0.51553868,4188.7,4188.5,0.6693]
[1758696718031,0.51553868,4188.6,4188.5,0.6693]
[1758696718243,0.51553868,4188.7,4188.5,0.6693]
[1758696718403,0.51553868,4188.6,4188.5,0.004]
[1758696718606,0.51553868,4188.7,4188.5,0.004]
[1758696718836,0.51553868,4188.6,4188.5,0.004]
[1758696719038,0.51553868,4188.7,4188.5,0.004]
[1758696719370,0.51553868,4188.6,4188.5,0.004]
[1758696720174,0.51553868,4188.6,4188.5,0.6693]
[1758696720881,0.51553868,4188.6,4188.5,3.05678955]
[1758696721038,0.51553868,4188.7,4188.6,2.38743255]
[1758696721238,0.1192,4188.8,4188.6,3.05273255]
[1758696721439,0.1192,4188.8,4188.7,0.6653]
[1758696721771,0.63513867,4188.8,4188.7,0.6653]
[1758696722138,0.51593867,4188.8,4188.7,0.6653]
[1758696723295,0.51593867,4188.8,4188.7,3.05267555]
[1758696723965,0.51593867,4188.8,4188.7,6.60901123]
[1758696724153,0.0194,4188.9,4188.8,5.38731856]
[1758696724474,0.0194,4188.9,4188.8,6.17181856]
[1758696729381,0.02,4189.9,4189.7,2.38680573]
[1758696729584,0.35654259,4190.8,4189.9,3.0]
[1758696729785,0.35654259,4190.8,4190.7,2.38623618]
[1758696730075,0.35654259,4190.8,4190.7,6.05153618]
[1758696730278,0.35654259,4190.8,4190.7,3.0]
[1758696730478,0.35654259,4190.8,4190.7,3.6653]
[1758696730847,0.35574259,4190.8,4190.7,3.6653]
[1758696731181,0.35574259,4190.8,4190.7,3.0]
[1758696731386,0.35574259,4190.8,4190.7,3.6653]
[1758696731680,0.35574259,4190.8,4190.7,3.0]
[1758696732397,0.63192149,4190.8,4190.7,3.0]
[1758696732560,2.81582183,4190.8,4190.7,3.0]
[1758696733043,2.74192183,4190.8,4190.7,3.0]
[1758696733470,0.35574259,4190.8,4190.7,3.0]
[1758696734043,2.74192183,4190.8,4190.7,3.0]
[1758696734248,2.74192183,4190.8,4190.7,6.99]
[1758696734449,3.25672121,4190.8,4190.7,6.99]
[1758696735288,3.25672121,4190.8,4190.7,6.989]
[1758696736283,0.87054197,4190.8,4190.7,6.989]
[1758696736486,0.35574259,4190.8,4190.7,6.989]
[1758696736647,2.74192183,4190.8,4190.7,3.0]
[1758696737173,2.38629313,4190.6,4189.4,0.2459]
[1758696737347,4.34474259,4190.8,4189.6,3.0]
[1758696737544,0.0739,4190.7,4189.3,0.4427]
[1758696737803,2.38679454,4189.8,4189.4,3.99]
[1758696738086,2.38679454,4189.8,4189.5,3.0]
[1758696738286,2.38682026,4189.7,4189.5,3.0]
[1758696738896,2.38674515,4189.9,4189.5,3.0]
[1758696739107,0.49514686,4190.6,4189.6,0.6886]
[1758696739266,2.38662353,4190.1,4189.8,3.0]
[1758696739598,0.1192,4190.1,4189.8,3.6886]
[1758696739979,2.3866918,4189.9,4189.8,3.6886]
[1758696740494,0.1192,4190.1,4189.8,3.2459]
[1758696741261,2.38667909,4190.0,4189.8,3.2459]
[1758696741464,2.50577879,4190.1,4189.8,3.2459]
[1758696741701,0.1192,4190.1,4189.8,3.0]
[1758696741903,2.38688339,4189.6,4189.4,0.1192]
[1758696742203,2.38688339,4189.6,4189.5,6.99]
[1758696743085,2.38688339,4189.6,4189.5,3.0]
[1758696743403,2.38688339,4189.6,4189.5,6.989]
[1758696743576,2.38688339,4189.6,4189.5,3.0]
[1758696743783,2.38688339,4189.6,4189.5,6.99]
[1758696744613,2.87616749,4189.6,4189.5,3.0]
[1758696744811,0.4892841,4189.6,4189.5,3.0]
[1758696745042,2.38674841,4189.9,4189.5,3.6886]
[1758696745214,2.38674998,4189.8,4189.6,0.2459]
[1758696745417,2.38674998,4189.8,4189.7,6.989]
[1758696749215,2.38674998,4189.8,4189.7,3.0]
[1758696749540,2.9379886,4189.8,4189.7,3.0]
[1758696751924,2.8640886,4189.8,4189.7,3.0]
[1758696753041,2.38674998,4189.8,4189.7,3.0]
[1758696755041,2.46064998,4189.8,4189.7,3.0]
[1758696755540,2.38674998,4189.8,4189.7,3.0]
[1758696757862,2.38594998,4189.8,4189.7,3.0]
[1758696759066,2.38594998,4189.8,4189.7,3.6886]
[1758696759228,0.51335099,4190.1,4189.7,3.6886]
[1758696759229,2.50590515,4189.9,4189.7,3.6886]
[1758696759430,0.1192,4189.9,4189.8,0.6886]
[1758696759639,2.50590678,4189.9,4189.8,0.6886]
[1758696761438,0.1192,4189.9,4189.8,4.6786]
[1758696761639,2.5058918,4189.9,4189.8,4.6786]
[1758696762264,0.1192,4189.9,4189.8,7.6786]
[1758696762633,2.5058918,4189.9,4189.8,7.6786]
[1758696764373,3.01924279,4189.9,4189.8,7.6786]
[1758696764565,2.5058918,4189.9,4189.8,7.6786]
[1758696764751,3.01924279,4189.9,4189.8,7.6786]
[1758696764951,2.5058918,4189.9,4189.8,7.6786]
[1758696765277,3.01924279,4189.9,4189.8,7.6786]
[1758696765985,3.01924279,4189.9,4189.8,6.99]
[1758696766572,3.01924279,4189.9,4189.8,7.2183]
[1758696766776,3.01924279,4189.9,4189.8,3.0]
[1758696767090,3.46091115,4189.9,4189.8,6.988]
[1758696767466,3.46091115,4189.9,4189.8,3.0]
[1758696768862,3.01924279,4189.9,4189.8,3.6752]
[1758696770190,0.63255099,4189.9,4189.8,3.6752]
[1758696770396,0.51335099,4189.9,4189.8,3.69906748]
[1758696772885,0.51335099,4190.1,4189.9,3.0]
[1758696773090,0.51335099,4190.0,4189.8,0.02386748]
[1758696773272,0.51335099,4189.9,4189.7,0.02386805]
[1758696773587,0.51335099,4190.1,4189.7,0.02386805]
[1758696773786,0.51335099,4190.0,4189.8,0.6752]
[1758696774097,2.50572318,4190.2,4189.9,4.6632]
[1758696774310,0.51568346,4190.1,4190.0,0.6752]
[1758696774486,0.51568346,4190.1,4190.0,0.4469]
[1758696775200,0.51568346,4190.1,4190.0,0.6752]
[1758696775801,0.51568346,4190.1,4190.0,3.6752]
[1758696776795,0.51568346,4190.1,4190.0,3.0]
[1758696777009,2.90227404,4190.1,4189.8,0.1192]
[1758696777220,0.64442335,4190.3,4190.0,3.0]
[1758696777374,2.90208148,4190.2,4190.1,6.329]
[1758696777564,2.90208148,4190.2,4190.1,7.2153]
[1758696777760,0.51556056,4190.2,4190.1,7.6622]
[1758696778073,0.51556056,4190.2,4190.1,6.987]
[1758696778472,0.51556056,4190.2,4190.1,7.6622]
[1758696779666,0.51556056,4190.4,4190.2,3.0]
[1758696779998,2.38637257,4190.5,4190.3,3.987]
[1758696780199,0.51541926,4190.4,4190.3,6.987]
[1758696780766,0.51541926,4190.4,4190.3,7.6622]
[1758696780966,0.51541926,4190.7,4190.3,6.987]
[1758696781166,2.38635007,4190.5,4190.3,6.987]
[1758696781468,0.51541926,4190.4,4190.3,6.987]
[1758696781668,2.90182628,4190.4,4190.3,6.987]
[1758696781903,2.38640702,4190.4,4190.3,6.987]
[1758696782106,0.51541926,4190.4,4190.3,6.987]
[1758696782274,0.51541926,4190.4,4190.3,7.6622]
[1758696782635,0.51541926,4190.6,4190.3,3.6752]
[1758696782801,2.90177098,4190.5,4190.3,7.6612]
[1758696783115,0.51541926,4190.4,4190.3,7.6612]
[1758696783612,2.90182628,4190.4,4190.3,7.6612]
[1758696783904,0.51541926,4190.6,4190.3,7.6612]
[1758696784113,0.51541926,4190.5,4190.4,0.6752]
[1758696784287,2.38639525,4190.5,4190.3,6.986]
[1758696784693,2.90181451,4190.5,4190.3,6.986]
[1758696784874,2.38559525,4190.5,4190.3,6.986]
[1758696785078,2.90101451,4190.5,4190.3,6.986]
[1758696785308,2.38559525,4190.5,4190.3,6.986]
[1758696785615,0.51541926,4190.5,4190.4,3.0]
[1758696785991,2.90176933,4190.5,4190.3,4.2143]
[1758696786190,2.38635007,4190.5,4190.4,3.0]
[1758696786387,0.51541926,4190.7,4190.4,3.0]
[1758696786388,0.51541926,4190.6,4190.4,3.0]
[1758696786597,0.51541926,4190.5,4190.1,3.0]
[1758696786790,0.51541926,4190.7,4190.2,6.67152092]
[1758696787094,0.51541926,4190.7,4190.4,3.0]
[1758696787407,0.99136185,4190.8,4190.6,3.0]
[1758696787584,3.3775488,4190.8,4190.7,6.985]
[1758696787785,3.2583488,4190.8,4190.7,3.0]
[1758696787981,4.46094743,4190.8,4190.7,6.986]
[1758696789021,2.07476048,4190.8,4190.7,6.986]
[1758696789318,0.87216185,4190.8,4190.7,7.6612]
[1758696789707,0.35674259,4190.8,4190.7,3.7944]
[1758696790018,0.35674259,4190.8,4190.7,10.16763618]
[1758696796033,0.35674259,4190.8,4190.7,10.05043618]
[1758696796232,0.35674259,4190.8,4190.7,3.2398]
[1758696796434,0.35674259,4190.8,4190.7,10.06653618]
[1758696798346,0.35674259,4190.8,4190.7,7.6803]
[1758696798518,0.35674259,4190.8,4190.7,10.06653618]
[1758696803147,0.35674259,4190.8,4190.7,7.6803]
[1758696803355,0.35674259,4190.8,4190.7,10.06653618]
[1758696803510,0.35674259,4190.8,4190.7,6.07753618]
[1758696803706,0.35674259,4190.8,4190.7,3.0]
[1758696803930,0.35674259,4190.8,4190.7,5.38623618]
[1758696804112,0.35674259,4190.8,4190.7,6.986]
[1758696805327,0.35674259,4190.8,4190.1,2.38652291]
[1758696805524,0.35674259,4190.8,4190.7,0.1192]
[1758696805843,0.35674259,4190.8,4190.7,6.986]
[1758696806044,0.43064259,4190.8,4190.7,6.985]
[1758696806251,0.35674259,4190.8,4190.7,6.985]
[1758696806665,0.35674259,4190.8,4190.7,3.0]
[1758696806829,0.35674259,4190.8,4190.7,6.985]
[1758696807264,0.35674259,4190.8,4190.7,3.0]
[1758696807442,2.74292183,4190.8,4190.7,6.986]
[1758696807946,2.74292183,4190.8,4190.7,3.0]
[1758696808149,3.11242401,4190.8,4190.7,3.0]
[1758696808659,3.03852401,4190.8,4190.7,6.986]
[1758696808862,3.11242401,4190.8,4190.7,6.986]
[1758696810679,3.03852401,4190.8,4190.7,6.986]
[1758696812244,3.03772401,4190.8,4190.7,3.0]
[1758696812580,3.03772401,4190.8,4190.7,6.989]
[1758696812880,8.75485793,4190.8,4190.7,3.0]
[1758696813079,2.50543618,4190.7,4190.6,3.988]
[1758696813242,2.38629313,4190.6,4190.5,0.004]
[1758696813440,2.97432973,4190.6,4190.5,0.004]
[1758696816691,2.90042973,4190.6,4190.5,0.004]
[1758696820268,3.76632973,4190.6,4190.5,0.004]
[1758696821066,2.3866918,4189.9,4189.8,0.004]
[1758696821292,8.50725625,4189.9,4189.8,0.004]
[1758696821494,9.02139285,4189.9,4189.8,0.004]
[1758696822505,0.64252807,4190.5,4189.8,0.685]
[1758696822682,2.38657204,4190.2,4189.9,0.681]
[1758696822866,2.38649344,4190.3,4190.0,0.681]
[1758696823072,0.1192,4190.2,4190.1,0.681]
[1758696823375,0.1192,4190.2,4189.8,0.004]
[1758696823707,0.1192,4190.2,4189.8,0.63309112]
[1758696823889,0.1192,4190.5,4189.9,0.681]
[1758696824111,0.1192,4190.5,4189.8,3.01982689]
[1758696824112,2.50556073,4190.5,4190.0,0.681]
[1758696824310,0.1192,4190.5,4190.2,3.0]
[1758696824483,2.38640737,4190.4,4190.2,3.0]
[1758696824678,2.38640737,4190.4,4190.3,0.681]
[1758696825979,0.1192,4190.5,4190.3,3.987]
[1758696826324,2.38640702,4190.4,4190.3,6.987]
[1758696826532,0.1192,4190.5,4190.3,7.2144]
[1758696826830,0.1192,4190.5,4190.4,0.681]
[1758696827391,2.50555007,4190.5,4190.4,0.681]
[1758696827616,0.1192,4190.5,4190.4,0.681]
[1758696828819,3.25604205,4190.8,4190.4,0.681]
[1758696828820,2.74213102,4190.8,4190.4,0.681]
[1758696829235,0.35594259,4190.8,4190.5,0.681]
[1758696829526,0.35594259,4190.8,4190.6,0.681]
[1758696829732,0.35594259,4190.8,4190.7,6.987]
[1758696829937,0.35594259,4190.8,4190.7,7.668]
[1758696830907,0.35594259,4190.8,4190.7,3.681]
[1758696831206,2.74212183,4190.8,4190.7,3.0]
[1758696831402,2.74212183,4190.8,4190.7,6.989]
[1758696831633,2.86132183,4190.8,4190.7,6.989]
[1758696832259,2.86132183,4190.8,4190.7,6.99]
[1758696832459,3.38806395,4190.8,4190.7,3.0]
[1758696834138,3.90246526,4190.8,4190.7,3.0]
[1758696834463,3.97636526,4190.8,4190.7,3.0]
[1758696834635,3.90246526,4190.8,4190.7,3.0]
[1758696835440,3.78326526,4190.8,4190.7,3.0]
[1758696836729,3.78326526,4190.8,4190.7,3.681]
[1758696837361,3.78326526,4190.8,4190.7,3.0]
[1758696839326,3.78246526,4190.8,4190.7,3.0]
[1758696839762,2.38640702,4190.4,4190.3,0.004]
[1758696839966,3.39000174,4190.4,4190.3,6.999]
[1758696840765,3.39000174,4190.4,4190.3,3.004]
[1758696846991,4.25590174,4190.4,4190.3,0.004]
[1758696849381,4.18200174,4190.4,4190.3,0.004]
[1758696849691,3.39000174,4190.4,4190.3,0.004]
[1758696852399,4.24841028,4190.4,4190.3,0.004]
[1758696852758,5.11431028,4190.4,4190.3,0.004]
[1758696853399,5.11405278,4190.4,4190.3,0.004]
[1758696853699,4.25590174,4190.4,4190.3,1e-08]
[1758696854706,5.548167,4190.4,4190.3,1e-08]
[1758696855371,4.25590174,4190.4,4190.3,1e-08]
[1758696857194,5.548167,4190.4,4190.3,1e-08]
[1758696858216,2.38663484,4190.0,4189.9,1e-08]
[1758696858516,0.9112,4189.9,4189.8,1e-08]
[1758696858674,3.81229311,4189.9,4189.8,1e-08]
[1758696859124,4.4552484,4189.9,4189.8,1e-08]
[1758696860184,3.81229311,4189.9,4189.8,1e-08]
[1758696860512,4.45520652,4189.9,4189.8,1e-08]
[1758696860700,5.89642552,4189.9,4189.8,1e-08]
[1758696861292,5.25351211,4189.9,4189.8,1e-08]
[1758696862788,11.82601038,4189.9,4189.8,1e-08]
[1758696862993,3.17880573,4189.7,4189.6,1e-08]
[1758696863193,3.17880573,4189.7,4188.2,0.004]
[1758696863194,3.17943255,4188.6,4188.5,1e-08]
[1758696863393,13.74593082,4188.6,4188.5,1e-08]
[1758696863619,15.11786187,4188.6,4188.5,1e-08]
[1758696863815,14.35608329,4188.6,4188.5,1e-08]
[1758696864023,16.60803735,4188.6,4188.5,1e-08]
[1758696864427,16.53413735,4188.6,4188.5,1e-08]
[1758696864787,9.96163908,4188.6,4188.5,1e-08]
[1758696865226,9.96163908,4188.6,4188.5,0.66890001]
[1758696865526,10.60375052,4188.6,4188.5,0.66890001]
[1758696865703,9.16963908,4188.6,4188.5,0.66890001]
[1758696866519,9.16883908,4188.6,4188.5,0.66890001]
[1758696868492,8.79435516,4188.6,4188.5,0.66890001]
[1758696868725,2.99678502,4188.6,4188.5,0.66890001]
[1758696868926,2.38663255,4188.6,4188.5,0.66890001]
[1758696869145,2.38738582,4188.7,4188.5,0.66890001]
[1758696869349,2.38743255,4188.6,4188.5,1e-08]
[1758696870039,2.38743255,4188.6,4188.5,0.66890001]
[1758696872546,0.51346624,4189.0,4188.5,0.66890001]
[1758696872747,2.3874323,4188.7,4188.6,0.6689]
[1758696878153,0.51346624,4189.0,4188.6,0.6689]
[1758696878356,2.38728094,4188.9,4188.7,0.6689]
[1758696878528,0.1192,4188.7,4188.5,1e-08]
[1758696879019,3.994,4189.4,4188.5,0.0238749]
[1758696879020,0.1192,4188.9,4188.5,0.0238749]
[1758696879371,0.1192,4188.9,4188.6,0.6689]
[1758696879566,0.1192,4188.9,4188.7,0.6689]
[1758696879745,0.1192,4188.9,4188.5,1e-08]
[1758696879746,0.1192,4188.9,4188.5,0.0238749]
[1758696879949,0.1192,4188.9,4188.8,0.6689]
[1758696884165,0.51418691,4189.5,4188.8,0.6689]
[1758696884453,2.38715663,4189.1,4188.9,0.6874]
[1758696884656,2.38710166,4189.2,4188.6,4.1112]
[1758696884825,0.1192,4189.3,4188.7,0.6874]
[1758696885151,0.1192,4189.3,4188.8,0.6874]
[1758696885519,2.38709061,4189.2,4188.9,0.6874]
[1758696885865,2.38710665,4189.2,4189.0,0.6874]
[1758696886018,2.38710665,4189.2,4188.7,0.77986]
[1758696886220,2.38710665,4189.2,4189.1,0.6874]
[1758696886756,0.1202,4189.3,4189.1,0.6874]
[1758696886955,0.1202,4189.3,4188.6,4.1152]
[1758696887163,2.50723363,4189.3,4189.2,0.6874]
[1758696888657,0.1202,4189.3,4189.2,0.6874]
[1758696888864,0.001,4189.3,4189.2,0.6874]
[1758696889225,2.38803363,4189.3,4189.2,0.6874]
[1758696890858,2.38716906,4189.1,4188.9,0.454]
[1758696891060,2.38803363,4189.3,4188.6,0.004]
[1758696891061,0.001,4189.3,4188.6,0.2374]
[1758696891237,2.38714759,4189.1,4188.9,0.6874]
[1758696891438,0.1192,4189.2,4188.9,0.454]
[1758696891737,2.38714759,4189.1,4189.0,0.6874]
[1758696892123,2.38714759,4189.1,4188.6,0.004]
[1758696892124,2.38714759,4189.1,4188.7,0.6874]
[1758696892323,2.38714759,4189.1,4188.8,0.6874]
[1758696892524,2.38721095,4189.0,4188.9,0.6874]
[1758696893124,2.38731752,4188.9,4188.6,0.004]
[1758696893362,2.38731752,4188.9,4188.6,0.2374]
[1758696893559,2.38721676,4189.0,4188.6,0.2374]
[1758696893861,2.38721676,4189.0,4188.7,0.6874]
[1758696894065,0.1192,4189.2,4188.8,0.71127318]
[1758696894657,0.1192,4189.2,4188.9,0.6874]
[1758696894866,2.50630497,4189.2,4188.9,0.6874]
[1758696895038,2.50630497,4189.2,4189.0,0.6874]
[1758696895238,2.50630497,4189.2,4189.1,0.2334]
[1758696895639,2.50630497,4189.2,4189.1,0.6874]
[1758696896147,0.1192,4189.2,4189.1,0.6874]
[1758696896580,0.001,4189.3,4189.1,0.6874]
[1758696896777,0.001,4189.3,4189.2,0.0238709]
[1758696896981,0.001,4189.3,4189.2,0.7112709]
[1758696897474,0.001,4189.3,4189.1,3.0]
[1758696897637,0.001,4189.3,4189.2,0.6874]
[1758696897837,0.001,4189.3,4189.2,0.7112709]
[1758696899036,0.001,4189.3,4189.2,0.6874]
[1758696901155,0.001,4189.3,4189.2,4.6774]
[1758696901791,0.001,4189.3,4189.2,4.7012709]
[1758696902095,0.001,4189.3,4189.2,4.6774]
[1758696903803,0.001,4189.3,4189.2,4.7012709]
[1758696904213,0.001,4189.3,4189.2,4.6774]
[1758696905106,0.001,4189.3,4189.2,4.2234]
[1758696906003,0.001,4189.3,4189.2,4.6774]
[1758696906207,0.001,4189.3,4189.2,7.7012709]
[1758696906374,0.001,4189.3,4189.2,10.06449061]
[1758696907684,0.001,4189.3,4189.2,7.6774]
[1758696908795,0.001,4189.3,4189.2,6.99]
[1758696909183,0.001,4189.3,4189.2,7.6774]
[1758696909898,0.001,4189.3,4189.2,6.982]
[1758696910077,0.001,4189.3,4189.2,3.0]
[1758696910495,0.001,4189.3,4189.2,6.982]
[1758696911031,0.001,4189.3,4189.2,7.6694]
[1758696911233,0.001,4189.3,4189.2,6.982]
[1758696911599,2.38714759,4189.1,4188.6,0.004]
[1758696911798,8.03229108,4188.7,4188.6,0.004]
[1758696912124,1.16038205,4188.7,4188.6,0.004]
[1758696912325,0.51569236,4188.7,4188.6,0.004]
[1758696912498,2.90306791,4188.7,4188.6,0.004]
[1758696915211,0.51569236,4188.7,4188.6,0.004]
[1758696915407,2.90306791,4188.7,4188.6,0.004]
[1758696915611,0.51569236,4188.7,4188.6,0.6761]
[1758696917456,0.51569236,4188.7,4188.6,0.2374]
[1758696917608,0.51569236,4188.7,4188.6,0.6761]
[1758696918399,0.51569236,4188.9,4188.6,0.6761]
[1758696918568,0.71784503,4189.2,4188.8,3.0]
[1758696918569,3.10494728,4189.2,4188.8,3.0]
[1758696918885,0.51513866,4189.1,4188.9,0.6721]
[1758696919086,2.38807773,4189.3,4189.0,7.6611]
[1758696919314,0.51513091,4189.2,4189.1,0.6721]
[1758696919584,0.51513091,4189.2,4189.1,3.6721]
[1758696920687,0.51433091,4189.2,4189.1,3.69597147]
[1758696920888,0.51433091,4189.2,4189.1,3.6721]
[1758696923400,2.90142152,4189.2,4189.1,3.0]
[1758696923795,0.51433091,4189.2,4189.1,3.6721]
[1758696924698,0.51433091,4189.2,4189.1,3.0]